fUST/lending_fUST_20240912
["ID","MTS","AMOUNT","RATE_DAILY","PERIOD"]
[337772245,1726094949433,-167.14816,0.00020349,2]
[337772246,1726094949455,-167.14816,0.00020437,2]
[337772247,1726094949482,-167.14816,0.00020524,2]
[337772248,1726094949510,-167.14816,0.00020612,2]
[337772249,1726094949532,-167.14816,0.000207,2]
[337772250,1726094949553,-167.14816,0.00020787,2]
[337772251,1726094949574,-1208.642791,0.0002086,2]
[337772252,1726094949595,-167.14816,0.00020875,2]
[337772253,1726094949617,-167.14816,0.00020962,2]
[337772254,1726094949637,-1309.7955475,0.00020967,2]
[337772255,1726094949659,-167.14816,0.0002105,2]
[337772256,1726094949680,-167.14816,0.00021138,2]
[337772257,1726094949702,-167.14816,0.00021225,2]
[337772258,1726094949725,-417.0490113,0.00021267,2]
[337772259,1726094949745,-300.0,0.00021441,2]
[337772260,1726094949766,-420.0,0.00021653,2]
[337772261,1726094949786,-2.39805962,0.00021918,2]
[337772262,1726094950118,-164.41617838,0.00021918,2]
[337772263,1726094995555,10000.0,0.00028,120]
[337772264,1726095006653,10000.0,0.00028,120]
[337772265,1726095029600,4745.0,0.00028,120]
[337772293,1726095032112,-500.0,0.00023407,2]
[337772294,1726095032122,-484.62723853,0.00023553,2]
[337772295,1726095032134,-251.0,0.00023602,2]
[337772296,1726095032145,-829.6435469,0.00024329,2]
[337772297,1726095032155,-1532.33765012,0.00024557,2]
[337772298,1726095032169,-98.80462761,0.00024557,2]
[337772299,1726095032178,-150.112233,0.000246,2]
[337772300,1726095032189,-150.0,0.000246,2]
[337772301,1726095032198,-150.112233,0.000246,2]
[337772302,1726095032207,-150.0,0.000246,2]
[337772303,1726095032217,-152.106,0.000246,7]
[337772304,1726095032226,-198.600359,0.000246,4]
[337772306,1726095032236,-1002.247329,0.000246,2]
[337772308,1726095032245,-151.3750591,0.00024608,2]
[337772310,1726095032255,-743.91838131,0.00024617,3]
[337772311,1726095032267,-1487.83676262,0.00024617,3]
[337772312,1726095032277,-1587.16368083,0.00024627,3]
[337772317,1726095037867,-4364.18336965,0.00024627,3]
[337772319,1726095037877,-743.91838131,0.00024637,3]
[337772321,1726095037886,-150.0,0.00024644,2]
[337772323,1726095037896,-524.0,0.00024644,2]
[337772324,1726095037906,-150.08,0.00024644,2]
[337772325,1726095037917,-150.068,0.00024644,2]
[337772326,1726095037927,-5207.42866917,0.00024647,3]
[337772327,1726095037941,-178.91,0.00024647,3]
[337772328,1726095037951,-536.76,0.00024647,3]
[337772329,1726095037961,-743.91838131,0.00024648,3]
[337772330,1726095037971,-885.83300552,0.00024656,2]
[337772331,1726095037981,-269.90122806,0.00024656,2]
[337772332,1726095038223,-500.0,0.00024656,2]
[337772333,1726095038233,-451.40792678,0.00024656,2]
[337772334,1726095038243,-191.43338027,0.00024656,2]
[337772335,1726095038252,-500.0,0.00024656,2]
[337772336,1726095038262,-308.84394484,0.00024656,2]
[337772337,1726095038271,-500.0,0.00024656,2]
[337772338,1726095038281,-500.0,0.00024656,2]
[337772339,1726095038290,-367.57800521,0.00024656,2]
[337772340,1726095038300,-500.0,0.00024656,2]
[337772341,1726095038311,-546.54897366,0.00024656,2]
[337772342,1726095038320,-500.0,0.00024656,2]
[337772343,1726095038329,-500.0,0.00024656,2]
[337772344,1726095038339,-500.0,0.00024656,2]
[337772345,1726095038348,-500.0,0.00024656,2]
[337772346,1726095038358,-500.0,0.00024656,2]
[337772347,1726095038370,-500.0,0.00024656,2]
[337772348,1726095038379,-500.0,0.00024656,2]
[337772349,1726095038388,-500.0,0.00024656,2]
[337772350,1726095038397,-500.0,0.00024656,2]
[337772351,1726095038409,-160.0,0.00024656,2]
[337772352,1726095038418,-500.0,0.00024657,2]
[337772353,1726095038427,-151.0,0.00024657,7]
[337772354,1726095038438,-151.0,0.00024657,7]
[337772355,1726095038448,-151.0,0.00024657,7]
[337772356,1726095038457,-151.0,0.00024657,7]
[337772357,1726095038466,-151.0,0.00024657,7]
[337772358,1726095038475,-151.0,0.00024657,7]
[337772359,1726095038488,-500.0,0.00024657,2]
[337772360,1726095038497,-500.0,0.00024657,2]
[337772361,1726095038507,-500.0,0.00024657,2]
[337772362,1726095038516,-500.0,0.00024657,2]
[337772363,1726095038526,-500.0,0.00024657,2]
[337772364,1726095038535,-500.0,0.00024657,2]
[337772365,1726095038544,-500.0,0.00024657,2]
[337772366,1726095038553,-658.05,0.00024657,2]
[337772367,1726095038563,-500.0,0.00024657,2]
[337772368,1726095038572,-579.82,0.00024657,2]
[337772369,1726095038581,-455.91969175,0.00024657,2]
[337772370,1726095038832,-44.08030825,0.00024657,2]
[337772371,1726095038842,-396.73318859,0.00024657,2]
[337772372,1726095038853,-500.0,0.00024657,2]
[337772373,1726095038863,-500.0,0.00024657,2]
[337772374,1726095038872,-754.4,0.00024657,2]
[337772375,1726095038881,-482.64519229,0.00024657,2]
[337772376,1726095038890,-500.0,0.00024657,2]
[337772377,1726095038900,-1638.06,0.00024657,2]
[337772378,1726095038910,-500.0,0.00024657,2]
[337772379,1726095038919,-500.0,0.00024657,2]
[337772380,1726095038928,-509.41762269,0.00024657,2]
[337772381,1726095038938,-500.0,0.00024657,2]
[337772382,1726095038947,-500.0,0.00024657,2]
[337772383,1726095038956,-500.0,0.00024657,2]
[337772384,1726095038966,-500.0,0.00024657,2]
[337772385,1726095038975,-500.0,0.00024657,2]
[337772386,1726095038985,-157.333388,0.00024657,7]
[337772387,1726095038994,-500.0,0.00024657,2]
[337772388,1726095039003,-961.21,0.00024657,2]
[337772389,1726095039012,-500.0,0.00024657,2]
[337772390,1726095039022,-500.0,0.00024657,2]
[337772391,1726095039031,-500.0,0.00024657,2]
[337772392,1726095039041,-500.0,0.00024657,2]
[337772393,1726095039050,-500.0,0.00024657,2]
[337772394,1726095039060,-500.0,0.00024657,2]
[337772395,1726095039069,-500.0,0.00024657,2]
[337772396,1726095039079,-384.76560748,0.00024657,2]
[337772397,1726095039233,-42.98823062,0.00024657,2]
[337772398,1726095039930,-72.2461619,0.00024657,2]
[337772399,1726095039940,-500.0,0.00024657,2]
[337772400,1726095039950,-500.0,0.00024657,2]
[337772401,1726095039961,-699.0,0.00024657,2]
[337772402,1726095039970,-658.08,0.00024657,2]
[337772403,1726095039980,-706.54,0.00024657,2]
[337772404,1726095039990,-500.0,0.00024657,2]
[337772405,1726095039999,-500.0,0.00024657,2]
[337772406,1726095040009,-500.0,0.00024657,2]
[337772407,1726095040019,-811.13,0.00024657,2]
[337772408,1726095040029,-500.0,0.00024657,2]
[337772409,1726095040038,-1245.27,0.00024657,2]
[337772410,1726095040048,-500.0,0.00024657,2]
[337772411,1726095040058,-500.0,0.00024657,2]
[337772412,1726095040068,-405.74739563,0.00024657,2]
[337772413,1726095040077,-500.0,0.00024657,2]
[337772414,1726095040088,-500.0,0.00024657,2]
[337772415,1726095040097,-500.0,0.00024657,2]
[337772416,1726095040107,-500.0,0.00024657,2]
[337772417,1726095040117,-500.0,0.00024657,2]
[337772418,1726095040127,-500.0,0.00024657,2]
[337772419,1726095040136,-500.0,0.00024657,2]
[337772420,1726095040146,-188.80168245,0.00024657,2]
[337772421,1726095040155,-500.0,0.00024657,2]
[337772422,1726095040164,-500.0,0.00024657,2]
[337772423,1726095040174,-500.0,0.00024657,2]
[337772424,1726095040183,-151.0,0.00024657,7]
[337772425,1726095040193,-151.0,0.00024657,7]
[337772427,1726095040203,-500.0,0.00024657,2]
[337772429,1726095040213,-500.0,0.00024657,2]
[337772431,1726095040223,-500.0,0.00024657,2]
[337772433,1726095040234,-500.0,0.00024657,2]
[337772435,1726095040244,-546.47,0.00024657,2]
[337772437,1726095040254,-500.0,0.00024657,2]
[337772439,1726095040264,-151.0,0.00024657,7]
[337772441,1726095040275,-151.0,0.00024657,7]
[337772443,1726095040287,-2531.22,0.00024657,2]
[337772445,1726095040296,-200.0,0.00024657,2]
[337772447,1726095040306,-493.28750728,0.00024657,2]
[337772449,1726095040315,-500.0,0.00024657,2]
[337772451,1726095040325,-500.0,0.00024657,2]
[337772453,1726095040335,-1583.77,0.00024657,2]
[337772455,1726095040344,-500.0,0.00024657,2]
[337772457,1726095040355,-151.0,0.00024657,7]
[337772458,1726095040368,-500.0,0.00024657,2]
[337772461,1726095040383,-500.0,0.00024657,2]
[337772463,1726095040394,-500.0,0.00024657,2]
[337772465,1726095040405,-500.0,0.00024657,2]
[337772467,1726095040418,-192.066876,0.00024657,7]
[337772469,1726095040429,-500.0,0.00024657,2]
[337772471,1726095040441,-500.0,0.00024657,2]
[337772473,1726095040451,-500.0,0.00024657,2]
[337772476,1726095040463,-500.0,0.00024657,2]
[337772478,1726095040473,-1391.36,0.00024657,2]
[337772480,1726095040483,-500.0,0.00024657,2]
[337772482,1726095040495,-151.0,0.00024657,7]
[337772484,1726095040506,-154.05373,0.00024657,7]
[337772486,1726095040518,-503.33122627,0.00024657,2]
[337772488,1726095040531,-927.59,0.00024657,2]
[337772490,1726095040541,-500.0,0.00024657,2]
[337772492,1726095040550,-500.0,0.00024657,2]
[337772494,1726095040560,-500.0,0.00024657,2]
[337772496,1726095040571,-1187.85,0.00024657,2]
[337772498,1726095040580,-500.0,0.00024657,2]
[337772500,1726095040590,-500.0,0.00024657,2]
[337772502,1726095040600,-1892.39,0.00024657,2]
[337772504,1726095040611,-769.39,0.00024657,2]
[337772507,1726095040623,-500.0,0.00024657,2]
[337772509,1726095040634,-500.0,0.00024657,2]
[337772511,1726095040646,-500.0,0.00024657,2]
[337772513,1726095040658,-500.0,0.00024657,2]
[337772516,1726095040668,-500.0,0.00024657,2]
[337772518,1726095040682,-599.1,0.00024657,2]
[337772520,1726095040694,-500.0,0.00024657,2]
[337772522,1726095040704,-562.25,0.00024657,2]
[337772524,1726095040716,-500.0,0.00024657,2]
[337772526,1726095040729,-500.0,0.00024657,2]
[337772527,1726095040740,-1127.4,0.00024657,2]
[337772528,1726095040753,-601.29008185,0.00024657,2]
[337772529,1726095040763,-500.0,0.00024657,2]
[337772530,1726095040773,-500.0,0.00024657,2]
[337772532,1726095040782,-888.31,0.00024657,2]
[337772534,1726095040793,-1000.86,0.00024657,2]
[337772536,1726095040803,-500.0,0.00024657,2]
[337772537,1726095040813,-500.0,0.00024657,2]
[337772538,1726095040827,-500.0,0.00024657,2]
[337772539,1726095040837,-745.5,0.00024657,2]
[337772540,1726095040847,-500.0,0.00024657,2]
[337772541,1726095040857,-500.0,0.00024657,2]
[337772542,1726095040867,-505.79,0.00024657,2]
[337772543,1726095040879,-500.0,0.00024657,2]
[337772544,1726095040891,-151.0,0.00024657,7]
[337772545,1726095040901,-789.67,0.00024657,2]
[337772546,1726095040914,-696.93,0.00024657,2]
[337772547,1726095040925,-500.0,0.00024657,2]
[337772548,1726095040937,-1221.68,0.00024657,2]
[337772549,1726095040948,-500.0,0.00024657,2]
[337772550,1726095040958,-393.132732,0.00024657,7]
[337772551,1726095040970,-500.0,0.00024657,2]
[337772552,1726095040981,-393.132732,0.00024657,7]
[337772553,1726095040991,-500.0,0.00024657,2]
[337772554,1726095041002,-165.04716265,0.00024657,2]
[337772555,1726095041012,-1427.22,0.00024657,2]
[337772556,1726095041021,-500.0,0.00024657,2]
[337772557,1726095041032,-500.0,0.00024657,2]
[337772558,1726095041043,-500.0,0.00024657,2]
[337772559,1726095041054,-2050.43,0.00024657,2]
[337772560,1726095041066,-1917.55,0.00024657,2]
[337772561,1726095041076,-500.0,0.00024657,2]
[337772562,1726095041088,-508.87238275,0.00024657,2]
[337772563,1726095041101,-500.0,0.00024657,2]
[337772564,1726095041112,-500.0,0.00024657,2]
[337772565,1726095041123,-795.02,0.00024657,2]
[337772566,1726095041134,-2768.48,0.00024657,2]
[337772567,1726095041145,-500.0,0.00024657,2]
[337772568,1726095041155,-500.0,0.00024657,2]
[337772569,1726095041167,-1827.01470037,0.00024657,2]
[337772584,1726095043231,-214.16619669,0.00024657,2]
[337772591,1726095046078,-150.0,0.00024644,2]
[337772592,1726095046088,-146.55910294,0.00024657,2]
[337772593,1726095046099,-500.0,0.00024657,2]
[337772594,1726095046110,-151.0,0.00024657,7]
[337772595,1726095046120,-151.0,0.00024657,7]
[337772596,1726095046130,-500.0,0.00024657,2]
[337772597,1726095046140,-151.0,0.00024657,7]
[337772598,1726095046150,-151.0,0.00024657,7]
[337772599,1726095046160,-99.44089706,0.00024657,2]
[337772603,1726096039118,-223.12125992,0.00022208,2]
[337772604,1726096040097,-76.87874008,0.00022208,2]
[337772605,1726096040120,-300.0,0.00022208,2]
[337772606,1726096040143,-16.36419176,0.00022209,2]
[337772607,1726096053120,-8485.73325778,0.00022209,2]
[337772608,1726096158132,-3002.54218624,0.00021315,2]
[337772609,1726096158155,-182.29834,0.00021414,2]
[337772610,1726096158178,-166.666666,0.00021918,2]
[337772611,1726096158201,-200.13040776,0.00022208,2]
[337772612,1726096159131,-7.86959224,0.00022208,2]
[337772613,1726096159154,-9038.34124258,0.00022209,2]
[337772614,1726096167408,-7359.56130788,0.00022209,2]
[337772615,1726096167430,-3000.0,0.0002224,2]
[337772616,1726096198689,34.95569212,0.00022424,2]
[337772618,1726096232207,-250.0,0.00022343,2]
[337772619,1726096232217,-227.1291972,0.00022383,2]
[337772620,1726096232226,-351.07905939,0.00022424,2]
[337772648,1726096238247,-323.81791502,0.00022424,2]
[337772662,1726096240117,-98.87208457,0.00022424,2]
[337772663,1726096240130,-251.0,0.00022489,2]
[337772665,1726096240140,-2127.94889,0.00022564,2]
[337772667,1726096240150,-6214.5532272,0.00022592,2]
[337772669,1726096240160,-201.6873737,0.00022593,2]
[337772670,1726096240170,-1319.2491605,0.00022678,2]
[337772672,1726096240179,-1518.709617,0.00022814,2]
[337772673,1726096240189,-168.75,0.00022884,2]
[337772674,1726096240199,-168.75,0.00022993,2]
[337772675,1726096240209,-168.75,0.00023101,2]
[337772676,1726096240219,-168.75,0.0002321,2]
[337772677,1726096240229,-168.75,0.00023318,2]
[337772678,1726096240239,-168.75,0.00023427,2]
[337772679,1726096240248,-168.75,0.00023535,2]
[337772680,1726096240258,-168.75,0.00023643,2]
[337772681,1726096240268,-153.0,0.00023741,2]
[337772682,1726096240278,-168.75,0.00023752,2]
[337772683,1726096240288,-168.75,0.0002386,2]
[337772684,1726096240297,-168.75,0.00023969,2]
[337772685,1726096240307,-168.75,0.00024077,2]
[337772686,1726096240318,-695.79074367,0.00024557,2]
[337772687,1726096240328,-56.89945537,0.00024626,2]
[337772688,1726096240349,-360.60134221,0.00024626,2]
[337772689,1726096240358,-500.0,0.00024626,2]
[337772690,1726096240368,-72268.42686704,0.00024627,3]
[337772691,1726096240380,-972.0,0.00024627,3]
[337772699,1726096242993,-357.82,0.00024617,3]
[337772700,1726096243004,-21699.62580794,0.00024627,3]
[337772701,1726096243074,-1791.89,0.00024627,3]
[337772702,1726096243145,-4415.54016756,0.00024627,3]
[337772704,1726096243158,-499.78027732,0.00024627,3]
[337772713,1726096246392,-43.69365909,0.00024627,3]
[337772734,1726097236156,-250.0,0.00021151,2]
[337772735,1726097236178,-180.802371,0.00021249,2]
[337772736,1726097236198,-1203.9423399,0.00021456,2]
[337772737,1726097236220,-1162.376459,0.0002162,2]
[337772738,1726097236257,-3029.4012245,0.00021844,2]
[337772739,1726097236280,-3000.0,0.00021981,2]
[337772740,1726097236302,-300.0,0.00022203,2]
[337772741,1726097236324,-720.27376757,0.00022204,2]
[337772742,1726097237108,-256.80712599,0.00022204,2]
[337772749,1726097355119,-3000.0,0.00022034,2]
[337772750,1726097355145,-3133.916205,0.00022133,2]
[337772754,1726097362127,-193.1270161,0.00022299,2]
[337772755,1726097368177,-22.4746569,0.00022299,2]
[337772756,1726097368200,-711.6503578,0.00022353,2]
[337772757,1726097385131,174.93215538,0.00022308,2]
[337772777,1726097432172,-315.155,0.00022727,2]
[337772778,1726097432184,-671.33001715,0.00022727,2]
[337772779,1726097432235,-1541.21344508,0.00022727,2]
[337772785,1726097438326,-463.28768441,0.00022727,2]
[337772786,1726097438338,-2082.21946446,0.00022727,2]
[337772787,1726097438352,-2840.31324716,0.00022727,2]
[337772788,1726097438500,-185.03129236,0.00022727,2]
[337772807,1726097440204,-16801.44984938,0.00022727,2]
[337772809,1726097440215,-3133.916205,0.00022818,2]
[337772811,1726097440225,-500.0,0.00023343,2]
[337772812,1726097440234,-215.601673,0.00023461,2]
[337772813,1726097440244,-3133.916205,0.00023503,2]
[337772814,1726097440253,-1846.63922429,0.00023807,2]
[337772815,1726097440263,-1042.76016105,0.00023907,6]
[337772816,1726097440272,-486.269231,0.00023917,6]
[337772817,1726097440282,-315.155,0.00023917,6]
[337772818,1726097440292,-600.0,0.00024197,2]
[337772819,1726097440301,-176.25145821,0.00024388,2]
[337772820,1726097440311,-602.25672671,0.00024449,2]
[337772821,1726097440321,-1000.0,0.00024509,2]
[337772822,1726097440330,-152.106,0.00024524,7]
[337772823,1726097440340,-781.34111712,0.00024527,2]
[337772824,1726097440350,-150.112233,0.000246,4]
[337772825,1726097440360,-150.112233,0.000246,3]
[337772826,1726097440370,-150.112233,0.000246,3]
[337772827,1726097440379,-150.112233,0.000246,5]
[337772828,1726097440388,-150.112233,0.000246,2]
[337772830,1726097440398,-150.112233,0.000246,3]
[337772832,1726097440408,-150.112233,0.000246,4]
[337772834,1726097440417,-150.112233,0.000246,4]
[337772835,1726097440427,-150.0,0.000246,2]
[337772837,1726097440436,-260.55,0.00024617,3]
[337772838,1726097440446,-500.0,0.00024626,2]
[337772839,1726097440455,-500.0,0.00024626,2]
[337772840,1726097440464,-324.36349148,0.00024626,2]
[337772841,1726097440474,-500.0,0.00024626,2]
[337772842,1726097440483,-500.0,0.00024626,2]
[337772843,1726097440493,-488.45331954,0.00024626,2]
[337772844,1726097440503,-500.0,0.00024626,2]
[337772845,1726097440513,-500.0,0.00024626,2]
[337772846,1726097440523,-500.0,0.00024626,2]
[337772847,1726097440532,-379.51492861,0.00024626,2]
[337772848,1726097440542,-500.0,0.00024626,2]
[337772849,1726097440551,-500.0,0.00024626,2]
[337772850,1726097440560,-500.0,0.00024626,2]
[337772851,1726097440570,-500.0,0.00024626,2]
[337772852,1726097440579,-500.0,0.00024626,2]
[337772853,1726097440588,-500.0,0.00024626,2]
[337772854,1726097440597,-245.20305281,0.00024626,2]
[337772855,1726097440607,-500.0,0.00024626,2]
[337772856,1726097440618,-500.0,0.00024626,2]
[337772857,1726097440627,-58208.0140339,0.00024627,3]
[337772858,1726097440636,-5204.69888305,0.00024627,3]
[337772859,1726097440645,-151.0,0.00024627,7]
[337772860,1726097440655,-230.123695,0.00024627,7]
[337772861,1726097440664,-230.123695,0.00024627,7]
[337772862,1726097440674,-151.0,0.00024627,7]
[337772863,1726097440683,-151.0,0.00024627,7]
[337772864,1726097440692,-151.0,0.00024627,7]
[337772865,1726097440702,-315.98554874,0.00024636,2]
[337772866,1726097440711,-500.0,0.00024636,2]
[337772867,1726097440721,-188.93085964,0.00024636,2]
[337772868,1726097440730,-416.19076138,0.00024636,2]
[337772869,1726097440739,-155551.64624935,0.00024637,3]
[337772870,1726097440763,-27735.41273229,0.00024637,3]
[337772871,1726097440774,-332.38819351,0.00024637,3]
[337772915,1726098434378,-155.0,0.00022,2]
[337772916,1726098434401,-90.40153692,0.00023494,2]
[337772917,1726098440116,-260.1757126,0.00023494,2]
[337772918,1726098440152,-356.36017217,0.00023494,2]
[337772946,1726098632363,-27.26683744,0.00022896,2]
[337772989,1726098640443,-137.14934096,0.00022896,2]
[337772990,1726098640456,-798.74896795,0.00023207,2]
[337772991,1726098640468,-2201.25103205,0.00023207,2]
[337772992,1726098640479,-1044.638735,0.00023428,2]
[337772993,1726098640491,-18276.49804351,0.00023494,2]
[337772994,1726098640501,-581.18823,0.00023499,2]
[337772995,1726098640512,-600.0,0.00023908,6]
[337772996,1726098640525,-1044.638735,0.00024113,2]
[337772997,1726098640534,-600.0,0.00024197,2]
[337772998,1726098640544,-644.18439205,0.00024449,7]
[337772999,1726098640555,-602.25672671,0.00024449,2]
[337773000,1726098640564,-1846.63922429,0.0002449,2]
[337773001,1726098640574,-152.106,0.000245,7]
[337773002,1726098640584,-781.34111712,0.00024547,2]
[337773003,1726098640594,-739.03499887,0.00024557,2]
[337773004,1726098640604,-521.1,0.00024589,3]
[337773005,1726098640617,-56804.6239876,0.0002459,3]
[337773006,1726098640628,-4944.46393886,0.0002459,3]
[337773007,1726098640637,-500.0,0.00024598,2]
[337773008,1726098640647,-500.0,0.00024598,2]
[337773009,1726098640656,-324.36349148,0.00024598,2]
[337773010,1726098640667,-500.0,0.00024598,2]
[337773011,1726098640678,-500.0,0.00024598,2]
[337773012,1726098640689,-500.0,0.00024598,2]
[337773013,1726098640699,-500.0,0.00024598,2]
[337773014,1726098640709,-500.0,0.00024598,2]
[337773015,1726098640719,-500.0,0.00024598,2]
[337773016,1726098640729,-500.0,0.00024598,2]
[337773017,1726098640740,-500.0,0.00024598,2]
[337773018,1726098640750,-500.0,0.00024598,2]
[337773019,1726098640759,-379.51492861,0.00024598,2]
[337773020,1726098640770,-500.0,0.00024598,2]
[337773021,1726098640780,-259.37798759,0.00024598,2]
[337773022,1726098640789,-500.0,0.00024598,2]
[337773023,1726098640798,-500.0,0.00024598,2]
[337773024,1726098640807,-500.0,0.00024598,2]
[337773025,1726098640816,-500.0,0.00024598,2]
[337773026,1726098640825,-500.0,0.00024598,2]
[337773027,1726098640834,-500.0,0.00024598,2]
[337773028,1726098640843,-500.0,0.00024598,2]
[337773029,1726098640852,-500.0,0.00024598,2]
[337773030,1726098640861,-500.0,0.00024598,2]
[337773031,1726098640870,-330.20305281,0.00024598,2]
[337773032,1726098640881,-500.0,0.00024598,2]
[337773033,1726098640891,-500.0,0.00024598,2]
[337773034,1726098640902,-500.0,0.00024598,2]
[337773035,1726098640911,-500.0,0.00024598,2]
[337773036,1726098640921,-150.112233,0.000246,4]
[337773037,1726098640930,-150.112233,0.000246,2]
[337773038,1726098640940,-150.112233,0.000246,3]
[337773039,1726098640950,-301.501546,0.000246,11]
[337773040,1726098640959,-85476.8735599,0.000246,2]
[337773041,1726098640969,-150.112233,0.000246,2]
[337773042,1726098640979,-150.112233,0.000246,3]
[337773043,1726098640988,-150.112233,0.000246,5]
[337773044,1726098640997,-150.112233,0.000246,3]
[337773045,1726098641006,-150.112233,0.000246,5]
[337773046,1726098641016,-150.112233,0.000246,2]
[337773047,1726098641031,-150.112233,0.000246,3]
[337773048,1726098641040,-150.112233,0.000246,4]
[337773049,1726098641050,-150.112233,0.000246,5]
[337773050,1726098641060,-188.93085964,0.00024626,2]
[337773051,1726098641071,-500.0,0.00024626,2]
[337773052,1726098641080,-416.19076138,0.00024626,2]
[337773053,1726098641090,-315.98554874,0.00024626,2]
[337773054,1726098641100,-48672.73948567,0.00024627,3]
[337773055,1726098641122,-1659.99695375,0.00024627,3]
[337773143,1726099244581,6398.0,0.00028,120]
[337773150,1726099533255,-180.39009,0.00021666,2]
[337773151,1726099533277,-92.32972795,0.00022682,2]
[337773154,1726099631166,-88.47264305,0.00022682,2]
[337773155,1726099631187,-180.98523675,0.00022846,2]
[337773156,1726099635160,-70.01476325,0.00022846,2]
[337773157,1726099635181,-500.84754383,0.00022902,2]
[337773159,1726099752158,-209.70668827,0.00021818,2]
[337773160,1726099755088,-2792.83549797,0.00021818,2]
[337773161,1726099755109,-310.918417,0.00021918,2]
[337773171,1726099832506,-2499.15245617,0.00022902,2]
[337773172,1726099832517,-290.594115,0.00022923,2]
[337773173,1726099832528,-4342.15342883,0.00022961,2]
[337773265,1726099838542,-463.60802538,0.00022961,2]
[337773266,1726099838555,-712.95635679,0.00022961,2]
[337773267,1726099838564,-173.657382,0.00023102,2]
[337773268,1726099838574,-173.657382,0.00023303,2]
[337773269,1726099838584,-500.0,0.00023343,2]
[337773270,1726099838594,-300.0,0.00023499,2]
[337773271,1726099838603,-300.0,0.00023499,2]
[337773272,1726099838612,-218.30680653,0.000235,2]
[337773273,1726099838622,-218.30680652,0.000235,2]
[337773274,1726099838632,-218.30680652,0.000235,2]
[337773275,1726099838641,-697.2428722,0.000235,2]
[337773276,1726099838650,-173.657382,0.00023503,2]
[337773277,1726099838660,-5518.717811,0.00023646,2]
[337773278,1726099838669,-173.657382,0.00023704,2]
[337773279,1726099838678,-173.657382,0.00023905,2]
[337773280,1726099838686,-173.657382,0.00024105,2]
[337773281,1726099838696,-153.0,0.00024247,2]
[337773282,1726099838704,-153.0,0.00024247,2]
[337773283,1726099838714,-153.0,0.00024247,2]
[337773284,1726099838723,-153.0,0.00024247,2]
[337773285,1726099838733,-153.0,0.00024247,2]
[337773286,1726099838743,-173.657382,0.00024306,2]
[337773287,1726099838753,-5518.717811,0.0002433,2]
[337773288,1726099838763,-4752.23838377,0.00024357,2]
[337773289,1726099838773,-232.2975734,0.00024384,2]
[337773290,1726099838783,-153.0,0.00024384,2]
[337773291,1726099838792,-153.0,0.00024384,2]
[337773292,1726099838801,-153.0,0.00024384,2]
[337773293,1726099838811,-153.0,0.00024384,2]
[337773294,1726099838820,-153.0,0.00024384,2]
[337773295,1726099838829,-438.3180568,0.00024384,2]
[337773296,1726099838839,-2204.81059855,0.00024447,2]
[337773297,1726099838848,-176.25145821,0.00024516,2]
[337773298,1726099838857,-399.82748463,0.00024527,2]
[337773299,1726099838867,-1000.0,0.00024574,2]
[337773300,1726099838876,-150.0,0.000246,2]
[337773301,1726099838885,-150.112233,0.000246,5]
[337773302,1726099838895,-150.112233,0.000246,3]
[337773303,1726099838903,-500.0,0.000246,2]
[337773304,1726099838913,-150.112233,0.000246,5]
[337773305,1726099838922,-150.112233,0.000246,3]